Cogmind - Beta 13 @@@ ROGUE MODE // 2024.06.06 @ 07:16:52 Player: Castelle Result: Destroyed by D-53 Grenadier with Mini Grenade Launcher Performance ------------- Evolutions (1) 500 Regions Visited (3) 600 Robots Destroyed (61) 305 Value Destroyed (1295) 1295 Prototype IDs (5) 100 Alien Tech Used (0) 0 Bonus (126) 126 TOTAL SCORE: 2926 Bonus ------- High Alert Combat Kills 126 Cogmind --------- Core Integrity 0/400 Matter 190/300 Energy 17/100 System Corruption 9% Temperature Warning (367) Movement Treading (240) Ox1 Location -9/Mines Parts ------- > --- POWER (1) -------- (None) > --- PROPULSION (3) --- Improved Treads > --- UTILITY (3) ------ Large Storage Unit Experimental Sensor Array > --- WEAPON (2) ------- Improved Medium Laser > --- INVENTORY (15) --- Ion Engine Ion Engine Light Treads Light Treads Huge Storage Unit Targeting Computer Improved Targeting Computer Field Recycling Unit (38) Assault Rifle Heavy Assault Rifle Light Cannon Peak State ------------ > --- POWER ------------ Light Nuclear Core > --- PROPULSION ------- Light Treads Light Treads Improved Treads > --- UTILITY ---------- Large Storage Unit Experimental Sensor Array Shield Generator > --- WEAPON ----------- Particle Cannon Mini Grenade Launcher > --- INVENTORY -------- Ion Engine Ion Engine Light Treads Huge Storage Unit Targeting Computer Improved Targeting Computer Field Recycling Unit EM Pulse Gun Improved Medium Laser Light EM Pulse Cannon Assault Rifle Assault Rifle Heavy Assault Rifle Light Cannon [Rating: 25] Favorites ----------- Power Light Nuclear Core Engine Ion Engine Power Core Light Nuclear Core Propulsion Light Treads Treads Light Treads Utility Large Storage Unit Device Tractor Beam Storage Large Storage Unit Processor Improved Targeting Computer Protection Hardened Light Armor Plating Weapon EM Pulse Gun Energy Gun EM Pulse Gun Energy Cannon Particle Cannon Ballistic Gun Assault Rifle Ballistic Cannon Light Cannon Launcher Mini Grenade Launcher Build | -11 -10 -9 -9 ------- Run | Yrd Mat Mat Min Slots Evolved 2 | . . 2 . Power . | . . . . Propulsion 1 | . . 1 . Utility 1 | . . 1 . Weapon . | . . . . Parts Attached 51 | 6 12 24 9 Power 6 | 1 2 3 . Engine 4 | 1 2 1 . Core 2 | . . 2 . Reactor . | . . . . Propulsion 14 | 2 3 7 2 Treads 14 | 2 3 7 2 Leg . | . . . . Wheel . | . . . . Hover . | . . . . Flight . | . . . . Utility 11 | 1 2 5 3 Device 5 | . 1 2 2 Storage 4 | 1 1 2 . Processor 1 | . . 1 . Hackware . | . . . . Protection 1 | . . . 1 Artifact . | . . . . Weapon 20 | 2 5 9 4 Energy Gun 8 | 1 3 2 2 Energy Cannon 1 | . . 1 . Ballistic Gun 4 | 1 1 2 . Ballistic Cannon 2 | . 1 1 . Launcher 5 | . . 3 2 Special Weapon . | . . . . Impact Weapon . | . . . . Slashing Weapon . | . . . . Piercing Weapon . | . . . . Special Melee Weapon . | . . . . Unidentified Prototypes 5 | . . 4 1 Parts Lost 17 | . . 9 8 Power 2 | . . 1 1 Propulsion 6 | . . 4 2 Utility 4 | . . 3 1 Weapon 5 | . . 1 4 Highest Loss Streak 8 | . . 4 8 To Critical Strikes . | . . . . Average Slot Usage (%) 94 | . 96 87 99 Engine 5 | . 14 4 . Core 6 | . . 6 11 Treads 30 | . 27 31 32 Device 14 | . 11 12 20 Storage 11 | . 14 11 11 Energy Gun 6 | . 13 6 . Energy Cannon 4 | . . 3 10 Ballistic Cannon 4 | . 12 2 . Launcher 6 | . . 8 10 Naked Turns . | . . . . Heaviest Build 91 | 14 91 91 43 Greatest Support 63 | 40 40 60 63 Greatest Overweight (x) 4 | 4 3 1 . Average Overweight (x) . | 1 . . . Largest Inventory Capacity 25 | 8 25 25 15 Average Capacity 13 | 7 9 15 15 Most Carried 15 | 2 6 11 15 Average Carried 8 | 1 3 8 13 Final Capacity 25 | 8 25 15 15 Final Carried 11 | 2 5 11 11 Class Distribution -------------------- 76% | Mutant 23% | Scavenger-Mutant Dominant Class ---------------- Mutant | -10/Materials Mutant | -9/Materials Mutant | -9/Mines Resources | -11 -10 -9 -9 ----------- Run | Yrd Mat Mat Min Matter Collected 1118 | 234 207 564 113 Remotely 445 | . 178 267 . Salvage Created 1441 | . 288 1061 92 Parts 98 | . 23 60 15 Haulers Intercepted 3 | . . 3 . Recyclers Shooed 5 | . 1 4 . Parts Field Recycled 24 | . . 24 . Retrieved Matter 155 | . . 155 . Parts Self-Destructed . | . . . . Prevented . | . . . . Kills | -11 -10 -9 -9 ------- Run | Yrd Mat Mat Min Combat Hostiles Destroyed 45 | . 10 21 14 Guns 4 | . 2 2 . Cannons 13 | . 4 6 3 AOE 28 | . 4 13 11 Classes Destroyed 11 | . 4 5 2 Worker 6 | . 1 2 3 Builder 6 | . . 6 . Tunneler 1 | . . . 1 Hauler 3 | . . 3 . Recycler 5 | . . 5 . Watcher 5 | . 1 4 . Swarmer 10 | . 6 . 4 Grunt 16 | . 4 12 . Brawler 1 | . . 1 . Sentry 8 | . . 8 . Assembled 10 | . . . 10 Best Kill Streak 13 | . 4 13 11 Combat Bots Only 10 | . 3 6 10 Max Kills in Single Turn 5 | . 3 3 5 Gunslinging . | . . . . Exploded 4 | . 3 2 4 Melee . | . . . . Uniques/NPCs Destroyed . | . . . . Combat | -11 -10 -9 -9 -------- Run | Yrd Mat Mat Min Hostile Shots Fired 152 | . 25 83 44 Missed 41 | . 6 25 10 Damage Taken 2227 | . 182 1315 730 Core 459 | . 38 237 184 Absorbed by Shields 90 | . . . 90 Regen/Repaired (Parts) 40 | . . 40 . Core Remaining (%) 92 | 100 84 . . Volleys Fired 91 | . 24 53 14 Largest 2 | . 2 2 2 Hottest 101 | . 75 98 101 Shots Fired 174 | . 48 99 27 Gun 65 | . 25 39 1 Cannon 60 | . 23 25 12 Launcher 49 | . . 35 14 Special . | . . . . Kinetic 44 | . 24 20 . Thermal 22 | . . 9 13 Explosive 49 | . . 35 14 Electromagnetic 59 | . 24 35 . Robot Hit Streak 8 | . 4 8 8 Robot Miss Streak 4 | . 4 3 3 Penetration Max . | . . . . Secondary Targets . | . . . . Shots Hit Robots 88 | . 20 60 8 Core Hits 128 | . 14 73 41 Critical Kills . | . . . . Critical Parts Destroyed . | . . . . Critical Strikes 2 | . . 2 . Burn 1 | . . 1 . Corrupt 1 | . . 1 . Melee Attacks . | . . . . Impact . | . . . . Slashing . | . . . . Piercing . | . . . . Sneak Attacks . | . . . . Combat Hostiles . | . . . . Follow-up Attacks . | . . . . Damage Inflicted 4238 | . 475 2731 1032 Guns 466 | . 145 321 . Cannons 530 | . 148 299 83 Explosions 3208 | . 168 2101 939 Melee . | . . . . Ramming 34 | . 14 10 10 Kinetic 365 | . 148 217 . Thermal 367 | . 168 116 83 Explosive 3040 | . . 2101 939 Electromagnetic 432 | . 145 287 . Impact . | . . . . Slashing . | . . . . Piercing . | . . . . Highest Corruption 9 | . . 9 9 Average Corruption 8 | . . 8 9 Corruption Purged . | . . . . Corruption Blocked . | . . . . Effects 50 | . . 21 29 Message Errors 14 | . . 4 10 Matter Fused 6 | . . 3 3 Heat Flow Errors 7 | . . 5 2 Energy Discharges 10 | . . 3 7 Parts Fused 1 | . . 1 . Data Loss (minor) 6 | . . 1 5 Data Loss (major) 1 | . . 1 . Misfires 2 | . . 1 1 Alerts 1 | . . 1 . Weapon Failures 2 | . . 1 1 Overload Shots . | . . . . Overflow Damage 88 | . . 62 26 Projectiles . | . . . . Explosions 88 | . . 62 26 Melee . | . . . . Knockbacks 3 | . 1 2 . Impact . | . . . . Kinetic 3 | . 1 2 . Secondary . | . . . . Self-Inflicted Damage 326 | . . 269 57 Shots 14 | . . 12 2 Rammed 7 | . 2 3 2 Targets Rammed 8 | . 2 3 3 Kicked . | . . . . Crushed 1 | . . . 1 Highest Temperature 367 | . 120 222 367 Average Temperature 68 | . 44 55 141 Received Heat Transfer 413 | . 45 339 29 Effects 1 | . . . 1 Damage (minor) 1 | . . . 1 Siege Activations . | . . . . Robots Corrupted . | . . . . Combat Hostiles . | . . . . Parts Fried . | . . . . Impact Corruptions . | . . . . Robots Melted . | . . . . Combat Hostiles . | . . . . Parts Melted 1 | . 1 . . Heat Transferred 594 | . 150 296 148 Parts Sabotaged . | . . . . Parts Stolen . | . . . . Parts Stripped . | . . . . Power Chain Reactions 2 | . 2 . . Alert | -11 -10 -9 -9 ------- Run | Yrd Mat Mat Min Peak Influence 757 | . 205 757 371 Initial 253 | . . 22 253 Average 267 | . 93 502 204 Maximum Alert Level 3 | . 1 3 1 Low Security (%) 54 | 100 87 18 58 Level 1 19 | . 12 5 41 Level 2 24 | . . 70 . Level 3 1 | . . 5 . Level 4 . | . . . . Level 5 . | . . . . High Security . | . . . . Max Security . | . . . . Squads Dispatched 2 | . . 2 . Investigation 1 | . . 1 . Extermination . | . . . . Reinforcement 1 | . . 1 . Assault . | . . . . Garrison . | . . . . Intercept . | . . . . Searches Triggered . | . . . . Construction Impeded 1 | . . 1 . Haulers Reinforced . | . . . . Active Scanning Responses . | . . . . Cargo Convoy Interrupts . | . . . . Stealth | -11 -10 -9 -9 --------- Run | Yrd Mat Mat Min Distress Signals 6 | . 3 3 . Communications Jammed . | . . . . Distress Signals . | . . . . Times Spotted 60 | . 16 28 16 Peak Tracking Total 18 | . 4 4 18 Tactical Retreats 2 | . 1 . 1 Traps | -11 -10 -9 -9 ------- Run | Yrd Mat Mat Min Traps Triggered 2 | . 2 . . Indirectly . | . . . . Trap Hack Attempts . | . . . . Triggered . | . . . . Disarmed . | . . . . Reprogrammed . | . . . . Reused . | . . . . Traps Extracted . | . . . . Installed . | . . . . Triggered . | . . . . Machines | -11 -10 -9 -9 ---------- Run | Yrd Mat Mat Min Machines Disabled 7 | . 1 5 1 Max in Single Turn 1 | . 1 1 1 Machines Repaired . | . . . . Machines Dismantled . | . . . . Machines Sabotaged . | . . . . Overloaded Fab Kills . | . . . . Hacking | -11 -10 -9 -9 --------- Run | Yrd Mat Mat Min Machines Accessed 4 | . 1 3 . Terminals 2 | . . 2 . Fabricators . | . . . . Repair Stations 1 | . . 1 . Recycling Units 1 | . 1 . . Scanalyzers . | . . . . Garrison Access . | . . . . Total Hacks 10 | . 2 8 . Successful 5 | . 1 4 . Failed 5 | . 1 4 . Catastrophic 1 | . . 1 . Database Lockouts . | . . . . Manual . | . . . . Terminals 6 | . . 6 . Fabricators . | . . . . Repair Stations 2 | . . 2 . Recycling Units 2 | . 2 . . Scanalyzers . | . . . . Garrison Access . | . . . . Terminal Hacks 2 | . . 2 . Branch Access Points 1 | . . 1 . Locate Traps 1 | . . 1 . Fabricator Hacks . | . . . . Repair Station Hacks 2 | . . 2 . Scan Component 1 | . . 1 . Repair 1 | . . 1 . Recycling Unit Hacks 1 | . 1 . . Retrieve Components 1 | . 1 . . Scanalyzer . | . . . . Garrison Access Hacks . | . . . . Unauthorized Hacks . | . . . . Terminals . | . . . . Fabricators . | . . . . Repair Stations . | . . . . Recycling Units . | . . . . Scanalyzers . | . . . . Garrison Access . | . . . . Data Cores Recovered . | . . . . Used . | . . . . Hacking Detections 2 | . 1 1 . Full Trace Events 1 | . . 1 . Feedback Events . | . . . . Feedback Blocked . | . . . . Robot Schematics Acquired . | . . . . Robots Built . | . . . . Authchips . | . . . . Time . | . . . . Total Robot Build Rating . | . . . . Part Schematics Acquired . | . . . . Parts Built . | . . . . Authchips . | . . . . Time . | . . . . Total Part Build Rating . | . . . . Parts Repaired 1 | . . 1 . Time 32 | . . 32 . Parts Recycled . | . . . . Recycled Matter . | . . . . Retrieved Matter . | . . . . Retrieved Components . | . . . . Parts Scanalyzed . | . . . . Part Schematics Acquired . | . . . . Parts Damaged . | . . . . Bothacking | -11 -10 -9 -9 ------------ Run | Yrd Mat Mat Min Used RIF Installer . | . . . . Robots Hacked . | . . . . Non-combat . | . . . . Combat . | . . . . Robot Hacks Applied . | . . . . Relay Couplers Released . | . . . . Fabnet Peak Effective % . | . . . . Robots Rewired . | . . . . Allies Hacked . | . . . . Hacks Repelled . | . . . . Allies | -11 -10 -9 -9 -------- Run | Yrd Mat Mat Min Total Allies . | . . . . Largest Group . | . . . . Highest-Rated Group . | . . . . Highest-Rated Ally . | . . . . Total Orders . | . . . . Ally Attacks . | . . . . Total Damage . | . . . . Kills . | . . . . Allies Corrupted . | . . . . Allies Melted . | . . . . Intel | -11 -10 -9 -9 ------- Run | Yrd Mat Mat Min Robot Analysis Total . | . . . . Derelict Logs Recovered 2 | . . . 2 Drone Launches . | . . . . Drone Recoveries . | . . . . Exploration | -11 -10 -9 -9 ------------- Run | Yrd Mat Mat Min Turns Passed 2935 | 82 880 1007 966 Spaces Moved 1547 | 43 469 476 559 Core 19 | 18 1 . . Treads 1528 | 25 468 476 559 Legs . | . . . . Wheels . | . . . . Hover . | . . . . Flight . | . . . . Fastest Speed 50 | 50 160 160 160 Average Speed 163 | 168 167 163 160 Slowest Speed 320 | 250 320 240 160 Overloaded Moves . | . . . . Propulsion Burnouts . | . . . . Robots Hopped . | . . . . Cave-ins Triggered 1 | . . 1 . Exploration Rate (%) 43 | 4 59 28 82 Regions Visited 3 Branch Regions 1 Pre-discovered Areas . | . . . . Known Exits Taken 1 | . . 1 . Unknown Exits Taken 2 | 1 1 . . Scrap Searched 2 | . . . 2 Spaces Dug 6 | . . 6 . Terrain Destroyed 327 | . 12 208 107 Melee . | . . . . Projectile 1 | . . . 1 AOE 326 | . 12 208 106 Terrain Rammed . | . . . . Walls Destroyed . | . . . . Machines Disabled . | . . . . Actions | -11 -10 -9 -9 --------- Run | Yrd Mat Mat Min Total 1765 | 50 509 602 604 Wait 40 | . . 34 6 Move 1544 | 42 468 475 559 Hop . | . . . . Pick Up 9 | 2 . 1 6 Fast Attach 32 | 6 8 15 3 Attach 11 | . . 6 5 Detach 12 | . 1 10 1 Swap 8 | . 4 3 1 Drop 10 | . 2 2 6 Fire 91 | . 24 53 14 Melee . | . . . . Ram . | . . . . Kick . | . . . . Crush 8 | . 2 3 3 Escape Stasis . | . . . . Rewire . | . . . . Trap . | . . . . Miscellaneous . | . . . . Route ------- -11/Scrapyard -10/Materials (discovered 2 exits: *Mat / [*Min]) -9/Materials (discovered 2 exits: *Min x2) -9/Mines (discovered 1 exit: Mat) History --------- Turn | Location | Event 40 | -11/Scrapyard | Discovered new exit (range 15) 83 | -11/Scrapyard | Entered Materials 304 | -10/Materials | Build established: Mutant 665 | -10/Materials | Discovered new exit (range 8) 855 | -10/Materials | Discovered new exit (range 8) 963 | -10/Materials | Entered another Materials area 963 | -9/Materials | Evolved 2 slots: Propulsion x1, Utility x1 1040 | -9/Materials | Identified exit to Mines 1340 | -9/Materials | Lost 4 parts (2n1u1w) 1421 | -9/Materials | Crushed by falling debris 1421 | -9/Materials | Core integrity fell below 50% 1452 | -9/Materials | Lost 3 parts (1p1n1u) 1654 | -9/Materials | Repaired Mni. Grenade Launcher 1822 | -9/Materials | Build established: Scavenger-Mutant 1970 | -9/Materials | Entered Mines 2006 | -9/Mines | Joined a pair of Derelicts in attacking an 0b10 outpost 2096 | -9/Mines | Found a damaged Exp. Sensor Array with a note attached 2100 | -9/Mines | Found Prototype Device 2101 | -9/Mines | Identified Exp. Sensor Array 2306 | -9/Mines | Received a Rocket Launcher from a helpful Derelict 2533 | -9/Mines | Identified exit to Materials 2534 | -9/Mines | Learned 2 Materials zone layouts 2563 | -9/Mines | Build established: Mutant 2896 | -9/Mines | Assembled infested the area 2929 | -9/Mines | Core integrity fell below 20% 2934 | -9/Mines | Destroyed 10 combat bots 2936 | -9/Mines | Destroyed by D-53 Grenadier with Mini Grenade Launcher Last Messages --------------- System corrupted: Particle Cannon failed to cycle. The unstable cave ceiling collapses. Rocket Launcher destroyed. U-05 Engineer builds a Wall. Shield Generator destroyed. Particle Cannon destroyed. U-05 Engineer builds a Wall. The unstable cave ceiling collapses. U-05 Engineer builds a Wall. Lgt. Treads destroyed. U-05 Engineer destroyed. Lgt. Nuclear Core destroyed. EM Pulse Gun destroyed. System corrupted: Heat flow error (+268). The unstable cave ceiling collapses. Mni. Grenade Launcher destroyed. U-05 Engineer destroyed. Overheating: Imp. Treads damaged (-10). The unstable cave ceiling collapses. Map ----- +----------------------------------------------------+ | ?????????????????????????????????????????????????? | | ?????????????????????????????????????????????????? | | ?????????????????????????????????????????????????? | | ?????????????????????????????????????????????????? | | ????????